bitfinex/quotes_ETHUSD_20250608
["timestamp","ask_amount","ask_price","bid_price","bid_amount"]
[1749357703846,1.8343292,2519.9,2519.8,10.40156893]
[1749357708770,0.1813292,2519.9,2519.8,10.40156893]
[1749357708973,1.8343292,2519.9,2519.8,10.40256893]
[1749357710070,1.8343292,2519.9,2519.8,3.96856893]
[1749357710241,1.8343292,2519.9,2519.8,10.40256893]
[1749357714277,1.8343292,2519.9,2519.8,6.434]
[1749357714576,1.8343292,2519.9,2519.8,10.40256893]
[1749357714779,1.8343292,2519.9,2519.8,10.40156893]
[1749357715889,0.70713522,2520.3,2520.2,19.96793905]
[1749357716088,2.36013522,2520.3,2520.2,26.40493905]
[1749357717802,2.36013522,2520.3,2520.2,19.96793905]
[1749357718105,2.36013522,2520.3,2520.2,26.40393905]
[1749357721247,2.36013522,2520.3,2520.2,19.96793905]
[1749357721516,3.13133522,2520.3,2520.2,26.40093905]
[1749357721721,3.13133522,2520.3,2520.2,19.96793905]
[1749357721921,3.13133522,2520.3,2520.2,26.40193905]
[1749357722869,2.36013522,2520.3,2520.2,26.40193905]
[1749357725177,2.36013522,2520.3,2520.2,19.96793905]
[1749357725383,2.36013522,2520.3,2520.2,26.40093905]
[1749357727987,19.51113522,2520.3,2520.2,26.40093905]
[1749357729326,0.8053,2520.2,2519.5,16.0]
[1749357729534,0.8053,2520.2,2519.4,5.14419603]
[1749357729829,0.8053,2520.2,2520.0,3.96811363]
[1749357729975,0.8053,2520.2,2520.1,6.433]
[1749357732232,0.8053,2520.2,2519.7,3.9687219]
[1749357732430,0.8053,2520.2,2519.8,6.433]
[1749357732617,3.25662257,2520.1,2519.9,6.433]
[1749357734020,3.25662257,2520.1,2519.9,10.40138013]
[1749357734820,3.25662257,2520.1,2519.9,6.433]
[1749357736523,3.25662257,2520.1,2519.9,10.40139347]
[1749357739490,3.25662257,2520.1,2519.9,6.433]
[1749357740389,3.25662257,2520.1,2519.8,3.96852241]
[1749357740589,3.25662257,2520.1,2519.9,10.40140918]
[1749357741011,3.25662257,2520.1,2519.9,10.40135323]
[1749357741421,3.25662257,2520.1,2519.9,6.433]
[1749357741929,3.25662257,2520.1,2520.0,6.433]
[1749357742132,3.25662257,2520.1,2520.0,10.40125396]
[1749357744401,0.8282,2520.1,2520.0,10.40125396]
[1749357747827,20.30313522,2520.3,2520.2,3.96793905]
[1749357748401,20.30313522,2520.3,2520.2,10.40093905]
[1749357754144,21.25453081,2520.3,2520.2,10.40093905]
[1749357754342,20.30313522,2520.3,2520.2,10.40093905]
[1749357754802,21.25466112,2520.3,2520.2,10.40093905]
[1749357755207,23.38012723,2520.3,2520.2,10.40093905]
[1749357755404,23.38025644,2520.3,2520.2,10.40093905]
[1749357758212,21.25479033,2520.3,2520.2,10.40093905]
[1749357764965,21.62693469,2520.3,2520.2,10.40093905]
[1749357765327,21.25479033,2520.3,2520.2,10.40093905]
[1749357765523,21.6269365,2520.3,2520.2,10.40093905]
[1749357765752,20.83493694,2520.3,2520.2,10.40093905]
[1749357765956,20.83493328,2520.3,2520.2,10.40093905]
[1749357766156,20.46279033,2520.3,2520.2,10.40093905]
[1749357766831,19.51113522,2520.3,2520.2,10.40093905]
[1749357767351,20.46368549,2520.3,2520.2,10.40093905]
[1749357767545,19.51113522,2520.3,2520.2,10.40093905]
[1749357767933,20.46361708,2520.3,2520.2,10.40093905]
[1749357769650,20.83563262,2520.3,2520.2,10.40093905]
[1749357770133,20.46361708,2520.3,2520.2,10.40093905]
[1749357770760,20.83562573,2520.3,2520.2,10.40093905]
[1749357770942,20.46361708,2520.3,2520.2,10.40093905]
[1749357771146,20.8356285,2520.3,2520.2,10.40093905]
[1749357771573,20.46361708,2520.3,2520.2,10.40093905]
[1749357771764,20.83561932,2520.3,2520.2,10.40093905]
[1749357772072,20.46361708,2520.3,2520.2,10.40093905]
[1749357772807,20.83563295,2520.3,2520.2,10.40093905]
[1749357773137,20.83563398,2520.3,2520.2,10.40093905]
[1749357773472,20.46361708,2520.3,2520.2,10.40093905]
[1749357773669,20.83566142,2520.3,2520.2,10.40093905]
[1749357773907,20.46361708,2520.3,2520.2,10.40093905]
[1749357774104,20.83565932,2520.3,2520.2,10.40093905]
[1749357774405,20.46361708,2520.3,2520.2,10.39993905]
[1749357774606,20.83566152,2520.3,2520.2,10.39993905]
[1749357775107,20.46361708,2520.3,2520.2,10.39993905]
[1749357775780,20.83567471,2520.3,2520.2,10.39993905]
[1749357776284,20.83567417,2520.3,2520.2,10.39993905]
[1749357776500,20.8356748,2520.3,2520.2,10.39993905]
[1749357776642,20.83567494,2520.3,2520.2,10.39993905]
[1749357776842,20.46361708,2520.3,2520.2,10.39993905]
[1749357777577,20.83567561,2520.3,2520.2,10.39993905]
[1749357778281,20.46361708,2520.3,2520.2,10.39993905]
[1749357778475,20.83568618,2520.3,2520.2,10.39993905]
[1749357778677,20.46361708,2520.3,2520.2,10.39993905]
[1749357779389,20.83568379,2520.3,2520.2,10.39993905]
[1749357779950,20.46361708,2520.3,2520.2,10.39993905]
[1749357780155,20.83569281,2520.3,2520.2,10.39993905]
[1749357780355,20.46361708,2520.3,2520.2,10.39993905]
[1749357780551,20.83569529,2520.3,2520.2,10.39993905]
[1749357780755,20.8357449,2520.3,2520.2,10.39993905]
[1749357781589,20.46366669,2520.3,2520.2,10.39993905]
[1749357781886,21.63642189,2520.3,2520.2,6.432]
[1749357782086,22.58896717,2520.3,2520.2,6.432]
[1749357782493,22.96106327,2520.3,2520.2,6.432]
[1749357782788,22.58896717,2520.3,2520.2,6.432]
[1749357782989,22.96105051,2520.3,2520.2,6.432]
[1749357783289,22.58896717,2520.3,2520.2,6.432]
[1749357783489,22.96105093,2520.3,2520.2,6.432]
[1749357783689,22.58896717,2520.3,2520.2,6.432]
[1749357784259,22.96105241,2520.3,2520.2,6.432]
[1749357784661,22.96104846,2520.3,2520.2,6.432]
[1749357784861,22.58896717,2520.3,2520.2,6.432]
[1749357785291,22.96104916,2520.3,2520.2,6.432]
[1749357785500,20.4636805,2520.3,2520.2,6.432]
[1749357785666,20.83576056,2520.3,2520.2,6.432]
[1749357785867,20.83576046,2520.3,2520.2,6.432]
[1749357786290,20.83575757,2520.3,2520.2,6.432]
[1749357786488,20.83575711,2520.3,2520.2,6.432]
[1749357786803,20.83575793,2520.3,2520.2,6.432]
[1749357787094,20.4636805,2520.3,2520.2,6.432]
[1749357787393,20.83575515,2520.3,2520.2,6.432]
[1749357788198,19.18276088,2520.3,2520.2,6.432]
[1749357788392,19.51013522,2520.3,2520.2,14.44179788]
[1749357788585,19.51013522,2520.3,2520.2,11.16533905]
[1749357790701,19.51013522,2520.3,2520.2,27.16533905]
[1749357790702,2.35913522,2520.3,2520.2,27.16533905]
[1749357791167,2.35913522,2520.3,2520.2,20.73333905]
[1749357791367,2.35913522,2520.3,2520.2,27.16533905]
[1749357793369,2.35913522,2520.3,2520.2,27.16433905]
[1749357793572,2.35913522,2520.3,2520.2,20.73333905]
[1749357793798,2.35913522,2520.3,2520.2,27.16433905]
[1749357800089,2.35913522,2520.3,2520.2,27.16333905]
[1749357802499,0.70713522,2520.3,2520.2,27.16333905]
[1749357802699,2.35913522,2520.3,2520.2,27.16333905]
[1749357803788,0.70713522,2520.3,2520.2,27.16333905]
[1749357803987,2.35913522,2520.3,2520.2,27.16333905]
[1749357811089,2.35913522,2520.3,2520.2,20.73333905]
[1749357811433,2.35913522,2520.3,2520.2,30.43853085]
[1749357813228,2.35913522,2520.3,2520.2,31.66665096]
[1749357814927,2.35913522,2520.3,2520.2,19.96793905]
[1749357815228,2.35913522,2520.3,2520.2,26.39793905]
[1749357820165,19.50813522,2520.3,2520.2,26.39793905]
[1749357820745,17.85613522,2520.3,2520.2,30.90125096]
[1749357820912,19.50713522,2520.3,2520.2,30.90125096]
[1749357822504,17.85613522,2520.3,2520.2,30.90125096]
[1749357822710,19.50713522,2520.3,2520.2,30.90125096]
[1749357827617,17.85613522,2520.3,2520.2,30.90125096]
[1749357827841,19.50713522,2520.3,2520.2,30.90125096]
[1749357828182,17.85613522,2520.3,2520.2,30.90125096]
[1749357828344,19.50713522,2520.3,2520.2,30.90125096]
[1749357828545,17.85613522,2520.3,2520.2,30.90125096]
[1749357828855,19.50713522,2520.3,2520.2,30.90125096]
[1749357830668,17.85613522,2520.3,2520.2,30.90125096]
[1749357830850,19.50713522,2520.3,2520.2,30.90125096]
[1749357833183,19.50713522,2520.3,2520.2,29.67264507]
[1749357836951,17.85613522,2520.3,2520.2,29.67264507]
[1749357837154,19.50713522,2520.3,2520.2,29.67264507]
[1749357850124,2.35813522,2520.3,2520.2,29.67264507]
[1749357861299,2.35813522,2520.3,2520.2,23.24264507]
[1749357861599,5.19189874,2520.3,2520.2,3.96793905]
[1749357861805,0.8056,2520.2,2520.1,3.96800019]
[1749357862025,0.8056,2520.2,2519.6,3.27470602]
[1749357862226,0.8056,2520.2,2519.9,3.96832977]
[1749357862427,0.8056,2520.2,2520.0,6.429]
[1749357862634,4.38629874,2520.3,2520.0,6.429]
[1749357862635,1.32478987,2520.1,2520.0,6.429]
[1749357863745,1.32478987,2520.1,2520.0,10.39725396]
[1749357865830,0.8056,2520.1,2520.0,13.67195998]
[1749357866036,1.51273522,2520.3,2520.2,3.96793905]
[1749357866266,2.35813522,2520.3,2520.2,13.67164507]
[1749357869136,2.35813522,2520.3,2520.2,14.90048791]
[1749357871281,0.70713522,2520.3,2520.2,30.90048791]
[1749357871444,2.35813522,2520.3,2520.2,30.90048791]
[1749357872175,0.70713522,2520.3,2520.2,30.90048791]
[1749357872485,2.35813522,2520.3,2520.2,30.90048791]
[1749357872906,0.70713522,2520.3,2520.2,30.90048791]
[1749357873109,2.35813522,2520.3,2520.2,30.90048791]
[1749357883143,0.70713522,2520.3,2520.2,30.90048791]
[1749357883348,0.70713522,2520.3,2520.2,31.66858791]
[1749357883349,2.35813522,2520.3,2520.2,31.66858791]
[1749357884843,2.35813522,2520.3,2520.2,32.46858791]
[1749357886121,2.35813522,2520.3,2520.2,26.03958791]
[1749357886321,2.35813522,2520.3,2520.2,32.46858791]
[1749357886552,2.35813522,2520.3,2520.2,31.66858791]
[1749357886846,2.35813522,2520.3,2520.2,31.66758791]
[1749357888557,2.35813522,2520.3,2520.2,27.16403905]
[1749357888762,2.35813522,2520.3,2520.2,31.88403905]
[1749357890448,2.35813522,2520.3,2520.2,32.68403905]
[1749357892729,2.35813522,2520.3,2520.2,25.48793905]
[1749357893041,2.35813522,2520.3,2520.2,35.61948791]
[1749357894675,2.35813522,2520.3,2520.2,30.89948791]
[1749357897680,2.35813522,2520.3,2520.2,31.69948791]
[1749357897882,2.35813522,2520.3,2520.2,30.89948791]
[1749357901145,2.35813522,2520.3,2520.2,24.47148791]
[1749357901347,2.35813522,2520.3,2520.2,30.89948791]
[1749357909019,2.35813522,2520.3,2520.2,24.47148791]
[1749357909218,4.38518874,2520.3,2520.2,30.89948791]
[1749357909519,5.14018874,2520.3,2520.2,26.39593905]
[1749357910384,3.11213522,2520.3,2520.2,26.39593905]
[1749357914096,1.46213522,2520.3,2520.2,26.39593905]
[1749357914428,3.11213522,2520.3,2520.2,26.39593905]
[1749357915528,1.46213522,2520.3,2520.2,26.39593905]
[1749357915721,2.35713522,2520.3,2520.2,26.39593905]
[1749357918006,3.11763522,2520.3,2520.2,26.39593905]
[1749357918199,5.14419874,2520.3,2520.2,26.39593905]
[1749357918934,5.14419874,2520.3,2520.2,16.0]
[1749357919114,5.14419874,2520.3,2520.2,22.428]
[1749357919426,5.14419874,2520.3,2520.2,26.39593905]
[1749357923647,3.11763522,2520.3,2520.2,26.39593905]
[1749357926147,3.11763522,2520.3,2520.2,22.428]
[1749357927344,3.11763522,2520.3,2520.2,16.0]
[1749357927554,3.11763522,2520.3,2520.2,22.428]
[1749357928651,3.11763522,2520.3,2520.2,16.0]
[1749357928810,0.8048,2520.2,2520.0,16.0]
[1749357928998,0.8048,2520.2,2520.1,22.428]
[1749357929217,0.8048,2520.1,2519.5,3.96904147]
[1749357929537,0.8048,2519.8,2519.2,3.96946713]
[1749357929743,2.93212418,2519.7,2519.6,6.428]
[1749357929900,2.93212418,2519.7,2519.6,10.39688394]
[1749357930105,2.4548,2519.7,2519.6,10.39688394]
[1749357934884,0.8016,2520.0,2519.8,3.96853665]
[1749357935047,0.8016,2520.0,2519.9,10.39741144]
[1749357935245,0.8016,2520.2,2519.9,10.39741144]
[1749357935447,2.00352987,2520.1,2519.9,10.39741144]
[1749357935968,2.00352987,2520.1,2519.9,6.429]
[1749357936175,2.00352987,2520.1,2519.9,10.39737952]
[1749357936504,2.00352987,2520.1,2519.9,10.39740299]
[1749357936978,2.73369874,2520.3,2520.0,4.50354886]
[1749357937151,0.70713522,2520.3,2520.0,4.50354886]
[1749357937357,1.65,2520.2,2520.1,3.9680965]
[1749357939163,0.70713522,2520.3,2520.2,3.96793905]
[1749357939359,2.35713522,2520.3,2520.2,10.39693905]
[1749357940459,0.70713522,2520.3,2520.2,10.39693905]
[1749357940791,2.35713522,2520.3,2520.2,10.39693905]
[1749357942195,0.70713522,2520.3,2520.2,10.39693905]
[1749357942396,2.35713522,2520.3,2520.2,10.39693905]
[1749357942596,0.70713522,2520.3,2520.2,10.39693905]
[1749357942898,2.35713522,2520.3,2520.2,10.39693905]
[1749357943979,2.35713522,2520.3,2520.2,14.90048791]
[1749357944173,2.35713522,2520.3,2520.2,30.90048791]
[1749357944385,0.70713522,2520.3,2520.2,31.69998791]
[1749357944574,2.35713522,2520.3,2520.2,31.69998791]
[1749357949408,0.70713522,2520.3,2520.2,31.69998791]
[1749357949616,2.35713522,2520.3,2520.2,31.69998791]
[1749357951005,2.35713522,2520.3,2520.2,36.41998791]
[1749357953013,0.70713522,2520.3,2520.2,36.41998791]
[1749357953305,2.35713522,2520.3,2520.2,36.41998791]
[1749357957825,0.70713522,2520.3,2520.2,36.41998791]
[1749357957990,1.25350465,2520.4,2520.3,20.73966012]
[1749357958182,1.25350465,2520.4,2520.3,32.43666012]
[1749357959517,1.25350465,2520.4,2520.3,33.23666012]
[1749357960318,1.25350465,2520.4,2520.3,28.51666012]
[1749357966925,1.25350465,2520.4,2520.3,27.71666012]
[1749357974739,1.25350465,2520.4,2520.3,32.43666012]
[1749357977047,1.25350465,2520.4,2520.3,33.23666012]
[1749357978340,1.25350465,2520.4,2520.3,37.73820898]
[1749357980434,1.25350465,2520.4,2520.3,36.93820898]
[1749357980826,1.25350465,2520.4,2520.3,36.38820898]
[1749357981126,1.25350465,2520.4,2520.3,35.61530898]
[1749357983214,1.25350465,2520.4,2520.3,29.99130898]
[1749357983416,1.25350465,2520.4,2520.3,36.41530898]
[1749357984971,17.146,2521.2,2521.1,3.96652254]
[1749357985116,18.795,2521.2,2521.1,10.39052254]
[1749357985316,19.5739,2521.2,2521.1,10.39052254]
[1749357988930,17.9249,2521.2,2521.1,14.8940714]
[1749357989139,19.5739,2521.2,2521.1,14.8940714]
[1749357989345,19.5739,2521.2,2521.1,15.29044104]
[1749357992630,18.795,2521.2,2521.1,31.29044104]
[1749358002868,18.794,2521.2,2521.1,31.29044104]
[1749358003476,18.794,2521.2,2521.1,32.09044104]
[1749358004471,18.794,2521.2,2521.1,31.29044104]
[1749358009178,17.146,2521.2,2521.1,31.29044104]
[1749358009358,18.794,2521.2,2521.1,31.29044104]
[1749358015365,18.794,2521.2,2521.1,30.05925263]
[1749358016187,1.648,2521.2,2521.1,30.05925263]
[1749358017050,1.648,2521.2,2521.1,30.85925263]
[1749358017385,1.648,2521.2,2521.1,30.05925263]
[1749358021090,0.751,2521.5,2521.4,3.9660506]
[1749358021267,2.399,2521.5,2521.4,13.66041105]
[1749358021464,2.399,2521.5,2521.4,29.66041105]
[1749358021867,18.01966921,2521.6,2521.5,3.96589331]
[1749358022062,19.66766921,2521.6,2521.5,3.96589331]
[1749358022469,19.66766921,2521.6,2521.5,19.96589331]
[1749358024394,19.66666921,2521.6,2521.5,19.96589331]
[1749358027972,18.01966921,2521.6,2521.5,19.96589331]
[1749358028169,19.66666921,2521.6,2521.5,19.96589331]
[1749358032271,19.66666921,2521.6,2521.5,20.76479331]
[1749358032871,18.01966921,2521.6,2521.5,20.76479331]
[1749358033108,19.66666921,2521.6,2521.5,20.76479331]
[1749358033283,0.87666921,2521.6,2521.5,35.72815376]
[1749358034437,0.87666921,2521.6,2521.5,36.52815376]
[1749358035601,0.87666921,2521.6,2521.5,26.28479331]
[1749358035903,0.87666921,2521.6,2521.5,35.97715376]
[1749358036721,0.87666921,2521.6,2521.5,36.52715376]
[1749358037293,0.87666921,2521.6,2521.5,37.75140564]
[1749358042599,0.87666921,2521.6,2521.5,37.75040564]
[1749358045941,0.87666921,2521.6,2521.5,31.33140564]
[1749358046096,0.87666921,2521.6,2521.5,37.75040564]
[1749358046804,0.87666921,2521.6,2521.5,30.78140564]
[1749358047010,0.87666921,2521.6,2521.5,36.40150564]
[1749358047605,0.87666921,2521.6,2521.5,29.98250564]
[1749358047810,0.87666921,2521.6,2521.5,36.40150564]
[1749358049331,0.87666921,2521.6,2521.5,29.98250564]
[1749358049544,0.87666921,2521.6,2521.5,36.40050564]
[1749358055241,0.87666921,2521.6,2521.5,9.48589331]
[1749358055443,0.87666921,2521.6,2521.5,15.90389331]
[1749358055643,0.87666921,2521.6,2521.5,31.90389331]
[1749358056046,1.63766921,2521.6,2521.5,9.48589331]
[1749358056232,1.63766921,2521.6,2521.5,15.10389331]
[1749358056548,1.63766921,2521.6,2521.5,31.10389331]
[1749358056845,3.28366921,2521.6,2521.5,31.10389331]
[1749358057255,3.28366921,2521.6,2521.4,8.46266293]
[1749358057256,0.761,2521.5,2521.4,10.3840506]
[1749358057618,0.761,2521.5,2521.4,26.3840506]
[1749358058319,0.761,2521.5,2521.4,19.9660506]
[1749358058652,0.761,2521.5,2521.4,26.3840506]
[1749358060043,2.407,2521.5,2521.4,26.3840506]
[1749358061119,0.87666921,2521.6,2521.5,19.96589331]
[1749358061342,2.52266921,2521.6,2521.5,24.46250564]
[1749358063744,0.87666921,2521.6,2521.5,24.46250564]
[1749358063944,2.52266921,2521.6,2521.5,24.46250564]
[1749358065239,2.52266921,2521.6,2521.5,19.96589331]
[1749358065442,3.65104613,2521.6,2521.5,26.38489331]
[1749358065847,2.85514613,2521.6,2521.5,22.419]
[1749358066453,3.65104613,2521.6,2521.5,22.419]
[1749358067124,3.65104613,2521.6,2521.2,3.96633317]
[1749358067334,1.16100461,2521.5,2521.4,16.0]
[1749358067530,1.16100461,2521.5,2521.3,3.96619343]
[1749358067755,0.36510461,2521.5,2521.4,6.419]
[1749358068350,0.7959,2521.4,2521.2,3.96633298]
[1749358068540,0.7959,2521.4,2521.3,6.419]
[1749358068724,1.16426738,2521.4,2521.3,6.419]
[1749358071060,0.7959,2521.3,2521.1,3.96651312]
[1749358071255,17.9379,2521.3,2521.2,6.419]
[1749358072161,17.9379,2521.3,2520.7,4.49661233]
[1749358072162,0.7959,2521.2,2521.0,3.96666898]
[1749358072342,1.79379,2521.1,2521.0,3.96666898]
[1749358072662,1.79379,2521.1,2521.0,10.38566898]
[1749358073066,1.79379,2521.1,2521.0,6.419]
[1749358073263,1.79379,2521.1,2521.0,10.38567988]
[1749358073465,1.79379,2521.1,2521.0,6.419]
[1749358073835,1.79379,2521.1,2520.9,3.96677152]
[1749358074035,1.646,2521.0,2520.9,3.96677152]
[1749358074248,1.646,2521.0,2520.9,10.38577152]
[1749358074567,2.4419,2521.0,2520.9,10.38577152]
[1749358077542,2.4419,2521.0,2520.8,19.96692916]
[1749358077543,2.865469,2521.0,2520.8,19.96692916]
[1749358077742,2.865469,2521.0,2520.9,6.419]
[1749358078673,2.865469,2521.0,2520.9,26.38583724]
[1749358080568,2.865469,2521.0,2520.9,19.96683724]
[1749358080737,2.865469,2521.0,2520.9,26.38583724]
[1749358082871,2.865469,2521.0,2520.8,3.96693619]
[1749358083076,0.7866,2520.8,2520.6,19.96728367]
[1749358083278,0.7866,2520.8,2520.7,10.38715198]
[1749358083477,0.7866,2520.8,2520.7,6.42]
[1749358084470,0.7866,2520.8,2520.7,10.38715198]
[1749358085084,0.7866,2520.8,2520.7,6.42]
[1749358085291,1.07645259,2520.8,2520.5,19.96739171]
[1749358085592,1.07645259,2520.8,2520.6,10.38730848]
[1749358085975,1.07645259,2520.8,2520.4,16.0]
[1749358086178,0.8067,2520.7,2520.5,10.38736087]
[1749358086403,1.04160785,2520.7,2520.5,10.38736087]
[1749358087197,1.04160785,2520.7,2520.3,16.0]
[1749358087361,1.04160785,2520.7,2520.4,6.42]
[1749358087766,1.04160785,2520.7,2520.3,16.0]
[1749358087767,0.8067,2520.6,2520.3,16.0]
[1749358088062,0.8067,2520.6,2520.4,6.42]
[1749358088599,4.77412177,2520.6,2520.4,6.42]
[1749358088752,0.8067,2520.4,2520.2,3.96789239]
[1749358089094,1.646,2520.3,2520.2,3.96789239]
[1749358089481,1.646,2520.3,2520.2,10.38789239]
[1749358095306,0.7591,2520.2,2520.0,16.0]
[1749358095512,0.7591,2520.2,2520.1,10.3890965]
[1749358095862,0.7591,2520.2,2520.0,3.96813661]
[1749358096189,0.99961,2520.2,2520.1,22.421]
[1749358096578,0.99961,2520.2,2519.5,3.96898075]
[1749358096579,0.7591,2520.1,2519.6,16.39440935]
[1749358096783,17.15,2520.0,2519.9,16.0]
[1749358097167,17.15,2520.0,2519.7,3.96866235]
[1749358097368,17.15,2520.0,2519.8,6.421]
[1749358097612,0.7591,2519.8,2519.6,3.96878973]
[1749358097792,0.7591,2519.8,2519.7,10.38972643]
[1749358098108,0.7591,2519.8,2519.7,6.421]
[1749358098109,2.4051,2519.8,2519.7,6.421]
[1749358098259,4.57443666,2519.8,2519.7,6.421]
[1749358098908,4.57443666,2519.8,2519.7,10.38972643]
[1749358099325,0.7591,2519.8,2519.7,10.38972643]
[1749358099465,17.15,2520.0,2519.9,3.96841144]
[1749358100108,18.797,2520.0,2519.9,3.96841144]
[1749358100403,18.797,2520.0,2519.9,19.96841144]
[1749358101010,17.15,2520.0,2519.9,19.96841144]
[1749358101313,18.797,2520.0,2519.9,19.96841144]
[1749358103519,17.15,2520.0,2519.9,19.96841144]
[1749358103819,18.797,2520.0,2519.9,26.38941144]
[1749358104016,17.15,2520.0,2519.9,30.88602377]
[1749358104220,18.797,2520.0,2519.9,30.88602377]
[1749358105311,17.15,2520.0,2519.9,30.88602377]
[1749358105476,18.797,2520.0,2519.9,30.88602377]
[1749358106089,17.15,2520.0,2519.9,30.88602377]
[1749358106293,18.797,2520.0,2519.9,30.88602377]
[1749358106917,18.797,2520.0,2519.9,31.66532377]
[1749358107136,18.797,2520.0,2519.9,32.46532377]
[1749358107280,18.797,2520.0,2519.9,31.66532377]
[1749358113922,1.647,2520.0,2519.9,31.66532377]
[1749358115629,1.647,2520.0,2519.9,19.96841144]
[1749358115921,1.647,2520.0,2519.9,26.38841144]
[1749358118235,1.647,2520.0,2519.9,19.96841144]
[1749358118433,1.8894,2520.0,2519.8,3.96848997]
[1749358118731,2.6664,2520.0,2519.9,22.42]
[1749358118925,2.6664,2520.0,2519.9,26.38841144]
[1749358122145,2.6664,2520.0,2519.9,22.42]
[1749358122306,2.6664,2520.0,2519.9,26.38841144]
[1749358123529,2.6664,2520.0,2519.1,5.4793]
[1749358123751,0.26664,2519.9,2519.7,3.96863559]
[1749358123903,0.26664,2519.9,2519.8,10.38956893]
[1749358124533,0.26664,2519.9,2519.8,6.421]
[1749358125104,0.26664,2519.9,2519.8,10.38956893]
[1749358125939,0.26664,2519.9,2519.8,6.421]
[1749358126337,0.26664,2519.9,2519.8,10.38956893]
[1749358128044,17.41964,2519.9,2519.8,10.38956893]
[1749358128219,17.41964,2519.9,2519.8,3.96856893]
[1749358128419,17.41964,2519.9,2519.8,10.38956893]
[1749358129643,17.41964,2519.9,2519.8,6.421]
[1749358129942,18.17254,2519.9,2519.8,6.421]
[1749358132040,18.17254,2519.9,2519.8,10.38956893]
[1749358133616,19.81854,2519.9,2519.8,10.38956893]
[1749358134749,18.799,2519.9,2519.8,10.38956893]
[1749358135359,18.799,2519.9,2519.8,6.421]
[1749358136462,19.5519,2519.9,2519.8,6.421]
[1749358136654,19.5519,2519.9,2519.8,10.38956893]
[1749358136953,19.5519,2519.9,2519.8,6.421]
[1749358138558,19.5519,2519.9,2519.8,10.38956893]
[1749358139154,19.5519,2519.9,2519.8,6.421]
[1749358141757,21.50709,2519.9,2519.8,6.421]
[1749358148542,22.45906977,2519.9,2519.8,6.421]
[1749358148872,21.50709,2519.9,2519.8,6.421]
[1749358149742,26.42750032,2519.9,2519.8,6.421]
[1749358152179,3.96857897,2519.8,2519.4,16.0]
[1749358152367,2.64276679,2519.7,2519.5,6.421]
[1749358153462,2.64276679,2519.7,2519.4,3.96917865]
[1749358153643,2.64276679,2519.7,2519.6,6.421]
[1749358157273,2.64276679,2519.7,2519.4,3.96917865]
[1749358157479,0.7934,2519.6,2519.5,6.421]
[1749358157676,0.7934,2519.5,2518.8,3.97014451]
[1749358157877,0.7934,2519.4,2518.9,10.39083633]
[1749358158179,1.646,2519.3,2518.9,10.39083633]
[1749358158348,1.646,2519.3,2518.8,0.39717268]
[1749358158543,0.7934,2519.2,2518.9,6.421]
[1749358158746,1.4342855,2519.2,2518.9,6.421]
[1749358159976,0.7934,2519.2,2519.0,3.96982419]
[1749358161168,0.7934,2519.2,2518.9,10.39092456]
[1749358161374,0.7934,2519.2,2519.0,3.96976408]
[1749358161760,0.7934,2519.2,2518.9,10.39091088]
[1749358162075,0.7934,2519.2,2519.0,3.96982893]
[1749358162781,0.7934,2519.2,2519.1,3.9696717]
[1749358162976,0.7934,2519.2,2519.0,3.9697524]
[1749358166576,0.7934,2519.2,2518.9,6.421]
[1749358166783,0.7934,2519.2,2518.9,10.39091343]
[1749358166982,4.76305392,2519.2,2519.0,6.422]
[1749358167143,0.7934,2519.2,2519.0,6.422]
[1749358168879,1.646,2519.1,2519.0,6.422]
[1749358183194,18.807,2519.1,2519.0,6.422]
[1749358186269,17.161,2519.1,2519.0,10.39182929]
[1749358186493,18.807,2519.1,2519.0,10.39182929]
[1749358189608,17.161,2519.1,2519.0,10.39182929]
[1749358189810,18.807,2519.1,2519.0,10.39182929]
[1749358191826,18.807,2519.1,2519.0,26.39182929]
[1749358194927,17.161,2519.1,2519.0,26.39182929]
[1749358195095,18.807,2519.1,2519.0,26.39182929]
[1749358198419,18.807,2519.1,2519.0,19.96982929]
[1749358198632,18.807,2519.1,2519.0,26.39082929]
[1749358200327,18.807,2519.1,2519.0,27.21242929]
[1749358210618,18.807,2519.1,2519.0,27.21142929]
[1749358213061,1.646,2519.1,2519.0,27.21142929]
[1749358219815,1.646,2519.1,2519.0,19.96982929]
[1749358220060,1.646,2519.1,2519.0,26.38982929]
[1749358222165,1.646,2519.1,2519.0,26.38882929]
[1749358226538,0.7666,2519.2,2519.1,3.9696717]
[1749358226866,2.4116,2519.2,2519.1,3.9696717]
[1749358227262,0.7666,2519.2,2519.1,3.9696717]
[1749358227569,2.4116,2519.2,2519.1,3.9696717]
[1749358232131,2.65276,2519.2,2519.0,16.0]
[1749358232332,2.65276,2519.2,2519.1,6.42]
[1749358242680,2.65276,2519.2,2519.0,19.9697512]
[1749358242860,2.65276,2519.2,2519.0,3.9697512]
[1749358243189,2.65276,2519.2,2519.1,6.419]
[1749358243703,1.00776,2519.2,2519.1,6.419]
[1749358243981,1.88516,2519.2,2519.1,10.3886717]
[1749358246577,19.04416,2519.2,2519.1,10.3886717]
[1749358252871,17.40016,2519.2,2519.1,10.3886717]
[1749358253110,19.04416,2519.2,2519.1,10.3886717]
[1749358254916,19.04416,2519.2,2519.1,3.9696717]
[1749358255090,19.04416,2519.2,2519.1,10.3886717]
[1749358256019,19.04416,2519.2,2519.1,3.9696717]
[1749358256224,19.04416,2519.2,2519.1,10.3886717]
[1749358257018,19.04416,2519.2,2519.0,3.96978821]
[1749358257318,19.04416,2519.2,2519.1,10.3886717]
[1749358261782,17.40016,2519.2,2519.1,10.3886717]
[1749358261984,19.04416,2519.2,2519.1,10.3886717]
[1749358266013,19.04416,2519.2,2519.1,3.9696717]
[1749358266311,19.04416,2519.2,2519.1,6.419]
[1749358266493,19.99729362,2519.2,2519.1,6.419]
[1749358266679,19.99726088,2519.2,2519.1,6.419]
[1749358266889,19.99726088,2519.2,2519.1,10.3886717]
[1749358267088,19.04416,2519.2,2519.1,10.3886717]
[1749358267312,19.99726266,2519.2,2519.1,6.419]
[1749358267697,19.99726266,2519.2,2519.1,10.3886717]
[1749358267884,19.04416,2519.2,2519.1,10.3886717]
[1749358268289,19.9972251,2519.2,2519.1,10.3886717]
[1749358268830,19.04416,2519.2,2519.1,10.3886717]
[1749358269199,19.04416,2519.2,2519.1,6.419]
[1749358269532,19.9971965,2519.2,2519.1,6.419]